Cogmind - Beta 10.2 @@@ ROGUE MODE // 2021.02.24 @ 00:28:35 Player: Crophlin Result: Destroyed by G-34 Mercenary with Backup Laser I Performance ------------- Evolutions (1) 500 Regions Visited (2) 400 Robots Destroyed (16) 80 Value Destroyed (448) 448 Prototype IDs (2) 40 Alien Tech Used (0) 0 Bonus (0) 0 TOTAL SCORE: 1468 Bonus ------- None Cogmind --------- Core Integrity 0/400 Matter 280/300 Energy 95/100 System Corruption 1% Temperature Cool (9) Movement Core (350) Ox6 Location -9/Materials Parts ------- > --- POWER (1) -------- (None) > --- PROPULSION (4) --- (None) > --- UTILITY (2) ------ Large Storage Unit > --- WEAPON (2) ------- Grenade Launcher Mining Claw > --- INVENTORY (10) --- Light Ion Engine Aluminum Leg Improved Heat Sink Structural Scanner Signal Interpreter Improved Targeting Computer High-powered Tractor Beam High-powered Tractor Beam Peak State ------------ > --- POWER ------------ Improved Ion Engine > --- PROPULSION ------- Aluminum Leg Aluminum Leg Aluminum Leg > --- UTILITY ---------- Improved Heat Sink Large Storage Unit > --- WEAPON ----------- EM Pulse Gun Heavy Assault Rifle > --- INVENTORY -------- Light Ion Engine Light Ion Engine Structural Scanner Signal Interpreter Improved Targeting Computer High-powered Tractor Beam High-powered Tractor Beam Grenade Launcher Mining Claw [Rating: 13] Favorites ----------- Power Light Ion Engine Engine Light Ion Engine Propulsion Aluminum Leg Leg Aluminum Leg Utility Small Storage Unit Device Improved Heat Sink Storage Small Storage Unit Weapon Medium Laser Energy Gun Medium Laser Ballistic Gun Heavy Assault Rifle Launcher Grenade Launcher Slashing Weapon Mining Claw Build | -11 -10 -9 ------- Run | Scr Mat Mat Slots Evolved 2 | . . 2 Power . | . . . Propulsion 2 | . . 2 Utility . | . . . Weapon . | . . . Parts Attached 25 | 7 3 15 Power 3 | 1 . 2 Engine 3 | 1 . 2 Core . | . . . Reactor . | . . . Propulsion 5 | 2 . 3 Treads . | . . . Leg 5 | 2 . 3 Wheel . | . . . Hover . | . . . Flight . | . . . Utility 4 | 1 1 2 Device 1 | . . 1 Storage 3 | 1 1 1 Processor . | . . . Hackware . | . . . Protection . | . . . Artifact . | . . . Weapon 13 | 3 2 8 Energy Gun 6 | 2 2 2 Energy Cannon . | . . . Ballistic Gun 4 | 1 . 3 Ballistic Cannon . | . . . Launcher 1 | . . 1 Special Weapon . | . . . Impact Weapon . | . . . Slashing Weapon 2 | . . 2 Piercing Weapon . | . . . Special Melee Weapon . | . . . Unidentified Prototypes . | . . . Parts Lost 16 | . 2 14 Power 2 | . . 2 Propulsion 5 | . . 5 Utility 2 | . . 2 Weapon 7 | . 2 5 Highest Loss Streak 9 | . 2 9 Average Slot Usage (%) 81 | . 85 79 Engine 11 | . 14 10 Leg 27 | . 28 27 Device 2 | . . 3 Storage 17 | . 17 18 Energy Gun 9 | . 10 8 Ballistic Gun 10 | . 14 8 Slashing Weapon 1 | . . 1 Naked Turns . | . . . Heaviest Build 31 | 11 14 31 Greatest Support 40 | 20 20 40 Greatest Overweight (x) 2 | 1 . 2 Average Overweight (x) . | . . . Largest Inventory Capacity 10 | 6 6 10 Average Capacity 7 | 5 6 8 Most Carried 10 | 6 6 10 Average Carried 6 | 2 4 7 Final Capacity 10 | 6 6 10 Final Carried 8 | 2 6 8 Class Distribution -------------------- 60% | Mutant 39% | Scavenger-Mutant Dominant Class ---------------- Mutant | -10/Materials Scavenger-Mutant | -9/Materials Resources | -11 -10 -9 ----------- Run | Scr Mat Mat Matter Collected 548 | 209 104 235 Remotely . | . . . Salvage Created 570 | . 117 453 Parts 39 | . 8 31 Haulers Intercepted . | . . . Recyclers Shooed 1 | . . 1 Parts Field Recycled . | . . . Retrieved Matter . | . . . Parts Self-Destructed . | . . . Prevented . | . . . Kills | -11 -10 -9 ------- Run | Scr Mat Mat Combat Hostiles Destroyed 12 | . 4 8 Melee 1 | . . 1 Guns 11 | . 4 7 Classes Destroyed 6 | . 3 3 Builder 1 | . . 1 Recycler 1 | . . 1 Watcher 2 | . 1 1 Swarmer 3 | . 3 . Grunt 6 | . 1 5 Sentry 3 | . . 3 Best Kill Streak 4 | . 4 2 Combat Bots Only 3 | . 3 2 Max Kills in Single Turn 1 | . 1 1 Gunslinging . | . . . Exploded . | . . . Melee 1 | . . 1 Uniques/NPCs Destroyed . | . . . Combat | -11 -10 -9 -------- Run | Scr Mat Mat Damage Taken 1832 | . 341 1491 Core 430 | . 27 403 Absorbed by Shields . | . . . Core Remaining (%) 94 | 100 89 . Volleys Fired 67 | . 17 50 Largest 2 | . 2 2 Hottest 73 | . 70 73 Shots Fired 111 | . 32 79 Gun 110 | . 32 78 Cannon . | . . . Launcher 1 | . . 1 Special . | . . . Kinetic 58 | . 17 41 Thermal 41 | . 15 26 Explosive 1 | . . 1 Electromagnetic 11 | . . 11 Robot Hit Streak 9 | . 5 9 Robot Miss Streak 2 | . 2 2 Penetration Max . | . . . Secondary Targets 3 | . 1 2 Max Gunslinging Chain 1 | . 1 1 Shots Hit Robots 83 | . 21 62 Core Hits 32 | . 7 25 Critical Hits . | . . . Critical Kills . | . . . Critical Parts Destroyed . | . . . Melee Attacks 16 | . . 16 Impact . | . . . Slashing 16 | . . 16 Piercing . | . . . Sneak Attacks . | . . . Combat Hostiles . | . . . Follow-up Attacks . | . . . Damage Inflicted 1241 | . 264 977 Guns 1068 | . 264 804 Cannons . | . . . Explosions 80 | . . 80 Melee 93 | . . 93 Ramming . | . . . Kinetic 579 | . 139 440 Thermal 382 | . 125 257 Explosive 80 | . . 80 Electromagnetic 107 | . . 107 Impact . | . . . Slashing 93 | . . 93 Piercing . | . . . Highest Corruption 7 | . 7 1 Average Corruption 3 | . 6 1 Corruption Purged . | . . . Effects 11 | . 8 3 Message Errors 2 | . 2 . Matter Fused 1 | . 1 . Heat Flow Errors 1 | . 1 . Data Loss (minor) 1 | . . 1 Targeting Errors 6 | . 4 2 Overload Shots . | . . . Overflow Damage 3 | . . 3 Projectiles . | . . . Explosions 3 | . . 3 Melee . | . . . Knockbacks . | . . . Impact . | . . . Kinetic . | . . . Secondary . | . . . Self-Inflicted Damage 12 | . . 12 Shots 1 | . . 1 Rammed . | . . . Targets Rammed . | . . . Kicked . | . . . Crushed . | . . . Highest Temperature 189 | . 189 87 Average Temperature 40 | . 50 31 Received Heat Transfer 888 | . 96 792 Siege Activations . | . . . Robots Corrupted . | . . . Combat Hostiles . | . . . Parts Fried . | . . . Impact Corruptions . | . . . Robots Melted . | . . . Combat Hostiles . | . . . Parts Melted 4 | . 2 2 Heat Transferred 1110 | . 370 740 Parts Sabotaged . | . . . Parts Stolen . | . . . Parts Stripped . | . . . Power Chain Reactions . | . . . Missiles Intercepted . | . . . Alert | -11 -10 -9 ------- Run | Scr Mat Mat Peak Influence 189 | . 106 189 Initial . | . . . Average 78 | . 58 96 Maximum Alert Level . | . . . Low Security (%) 100 | 100 100 100 Level 1 . | . . . Level 2 . | . . . Level 3 . | . . . Level 4 . | . . . Level 5 . | . . . High Security . | . . . Max Security . | . . . Squads Dispatched 1 | . . 1 Investigation . | . . . Extermination . | . . . Reinforcement 1 | . . 1 Assault . | . . . Garrison . | . . . Intercept . | . . . Construction Impeded . | . . . Haulers Reinforced . | . . . Stealth | -11 -10 -9 --------- Run | Scr Mat Mat Distress Signals 2 | . 1 1 Communications Jammed . | . . . Distress Signals . | . . . Times Spotted 24 | . 7 17 Peak Tracking Total 11 | . 4 11 Tactical Retreats 2 | . 1 1 Traps | -11 -10 -9 ------- Run | Scr Mat Mat Traps Triggered 5 | . 4 1 Indirectly . | . . . Trap Hack Attempts . | . . . Triggered . | . . . Disarmed . | . . . Reprogrammed . | . . . Reused . | . . . Traps Extracted . | . . . Installed . | . . . Triggered . | . . . Machines | -11 -10 -9 ---------- Run | Scr Mat Mat Machines Disabled 1 | . . 1 Max in Single Turn 1 | . . 1 Machines Sabotaged . | . . . Garrisons Compromised . | . . . Overloaded Fab Kills . | . . . Fab Network Shutdowns . | . . . Hacking | -11 -10 -9 --------- Run | Scr Mat Mat Machines Accessed 6 | . 4 2 Terminals 5 | . 4 1 Fabricators . | . . . Repair Stations . | . . . Recycling Units . | . . . Scanalyzers 1 | . . 1 Garrison Access . | . . . Total Hacks 18 | . 11 7 Successful 14 | . 8 6 Failed 4 | . 3 1 Catastrophic 1 | . . 1 Database Lockouts . | . . . Manual . | . . . Terminals 13 | . 11 2 Fabricators . | . . . Repair Stations . | . . . Recycling Units . | . . . Scanalyzers 5 | . . 5 Garrison Access . | . . . Terminal Hacks 9 | . 8 1 Prototype ID Bank 1 | . 1 . Emergency Access Points 1 | . 1 . Alert Level 1 | . 1 . Unreport Threat 1 | . 1 . Locate Traps 2 | . 1 1 Transport Status 1 | . 1 . Hauler Manifests 1 | . 1 . Zone Layout 1 | . 1 . Fabricator Hacks . | . . . Repair Station Hacks . | . . . Recycling Unit Hacks . | . . . Scanalyzer 5 | . . 5 Insert Component 2 | . . 2 Analyze 3 | . . 3 Garrison Access Hacks . | . . . Unauthorized Hacks . | . . . Terminals . | . . . Fabricators . | . . . Repair Stations . | . . . Recycling Units . | . . . Scanalyzers . | . . . Garrison Access . | . . . Data Cores Recovered . | . . . Used . | . . . Hacking Detections 4 | . 2 2 Full Trace Events . | . . . Feedback Events . | . . . Feedback Blocked . | . . . Robot Schematics Acquired . | . . . Robots Built . | . . . Matter . | . . . Time . | . . . Total Robot Build Rating . | . . . Part Schematics Acquired 2 | . . 2 Parts Built . | . . . Matter . | . . . Time . | . . . Total Part Build Rating . | . . . Parts Repaired . | . . . Time . | . . . Parts Recycled . | . . . Recycled Matter . | . . . Retrieved Matter . | . . . Retrieved Components . | . . . Parts Scanalyzed 2 | . . 2 Part Schematics Acquired 2 | . . 2 Parts Damaged . | . . . Bothacking | -11 -10 -9 ------------ Run | Scr Mat Mat Used RIF Installer . | . . . Robots Hacked . | . . . Non-combat . | . . . Combat . | . . . Robot Hacks Applied . | . . . Relay Couplers Released . | . . . Robots Rewired . | . . . Allies Hacked . | . . . Hacks Repelled . | . . . Allies | -11 -10 -9 -------- Run | Scr Mat Mat Total Allies . | . . . Largest Group . | . . . Highest-Rated Group . | . . . Highest-Rated Ally . | . . . Total Orders . | . . . Ally Attacks . | . . . Total Damage . | . . . Kills . | . . . Allies Corrupted . | . . . Allies Melted . | . . . Intel | -11 -10 -9 ------- Run | Scr Mat Mat Robot Analysis Total . | . . . Derelict Logs Recovered . | . . . Drone Launches . | . . . Drone Recoveries . | . . . Exploration | -11 -10 -9 ------------- Run | Scr Mat Mat Turns Passed 884 | 63 256 565 Spaces Moved 489 | 47 165 277 Core 12 | 12 . . Treads . | . . . Legs 477 | 35 165 277 Wheels . | . . . Hover . | . . . Flight . | . . . Fastest Speed 50 | 50 120 120 Average Speed 123 | 104 120 128 Slowest Speed 180 | 120 120 180 Overloaded Moves . | . . . Propulsion Burnouts . | . . . Robots Hopped . | . . . Cave-ins Triggered . | . . . Exploration Rate (%) 20 | 4 37 21 Regions Visited 2 Branch Regions . Pre-discovered Areas . | . . . Known Exits Taken . | . . . Unknown Exits Taken 2 | 1 1 . Scrap Searched . | . . . Spaces Dug 2 | . . 2 Terrain Destroyed 8 | . . 8 Melee 2 | . . 2 Projectile . | . . . AOE 6 | . . 6 Terrain Rammed . | . . . Walls Destroyed . | . . . Machines Disabled . | . . . Actions | -11 -10 -9 --------- Run | Scr Mat Mat Total 626 | 60 191 375 Wait . | . . . Move 487 | 46 164 277 Hop . | . . . Pick Up 26 | 7 7 12 Fast Attach 4 | 1 . 3 Attach 15 | 5 3 7 Detach . | . . . Swap 6 | 1 . 5 Drop 5 | . . 5 Fire 67 | . 17 50 Melee 16 | . . 16 Ram . | . . . Kick . | . . . Crush . | . . . Escape Stasis . | . . . Rewire . | . . . Trap . | . . . Miscellaneous . | . . . Route ------- -11/Scrapyard -10/Materials -9/Materials History --------- Turn | Location | Event 6 | -11/Scrapyard | Discovered new exit (range 16) 64 | -11/Scrapyard | Entered Materials 227 | -10/Materials | Discovered new exit (range 10) 307 | -10/Materials | Build established: Mutant 320 | -10/Materials | Entered another Materials area 320 | -9/Materials | Evolved 2 slots: Propulsion x2 719 | -9/Materials | Lost 3 parts (1n1u1w) 827 | -9/Materials | Core integrity fell below 50% 837 | -9/Materials | Build established: Scavenger-Mutant 877 | -9/Materials | Core integrity fell below 20% 885 | -9/Materials | Destroyed by G-34 Mercenary with Backup Laser I Last Messages --------------- EM Pulse Gun destroyed. R-06 Scavenger collects Sml. Laser. Destroyed Sml. Laser. K-01 Serf collects debris. Hvy. Assault Rifle destroyed. G-47 Trooper destroyed. Acquired 46 matter. Acquired Particle Gun. Aluminum Leg destroyed. Acquired Aluminum Leg. Acquired Imp. Heat Sink. Aluminum Leg destroyed. System corrupted: Mining Claw targeting data glitched. Particle Gun destroyed. Lgt. Ion Engine destroyed. K-01 Serf collects debris. Aluminum Leg destroyed. K-01 Serf collects debris. Imp. Heat Sink destroyed. Destroyed Sml. Laser. Map ----- +----------------------------------------------------+ | ?????????????????????????????????????????????????? | | ?????????????????????????????????????????????????? | | ?????????????????????????????????????????????????? | | ?????????????????????????????????????????????????? | | ?????????????????????????????????????????????????? | | ?????????????????????????????????????????????????? | | ?????????????????????????????????????????????????? | | ?????????????????????????????????????????????????? | | ?????????????????????????????????????????????????? | | ?????????????????????????????????????????????????? | | ?????????????????????????????????????????????????? | | ?????????????????????????????????????????????????? | | ?????????????????????????????????????????????????? | | ?????????????????????????????????????????????????? | | ?????????????????????????????????????????????????? | | ?????????????????????######?############ ????????? | | ????????????????????##!! !### ????????? | | ????????????????????#! !## ????????? | | ????????????????????#! !## ?????????? | | ??????????????????? #### #### ??????????? | | ??????????????????? ???# #??# ??????????? | | ?????###???????????+#??# #??# ???????????? | | ###### #????####### #??# #??# ??????????????? | | "" #???# # #??# #### #????????????????? | | "S= #???? """ # #??#k# #????????????????? | | " * #????? """ # #??#g@ g #????????????????? | | #????? """ # #??# # g ########?????????? | | "" #?????? # #??# #### # #?????????? | | "" """ #??????? # #??# #??# # #?????????? | | "" """ #########+## ####%#??# + #?????????? | | + #??#% # #?????????? | | #+############### ####+####+# # ## #??????? | | #???????????# ## %! # # + +??????? | | ! #???????????#% ## * # ##+###+## #??????? | | %! #???????????# ## # + !! #????????? | | = #???????????# + # # #????????? | | #???????????# #####+#### # ! #????????? | | ##???????????# #########????????? | | #????????????# ######????????????????? | | #????????????# ^ #?????????????????????? | | ###+########## #?????????????????????? | | ^ #?????????????????????? | | ^ +?????????????????????? | | ######?????????????????????? | | ######+########## #??????????????????????????? | | ?# #????#######??????????????????????????? | | ?# #?????????????????????????????????????? | | ?# /] #?????????????????????????????????????? | | ?# /! #?????????????????????????????????????? | | ?# /! [#?????????????????????????????????????? | +----------------------------------------------------+ Best States ------------- Heat Dissipation 42 Energy Generation 12 Energy Capacity 565 Matter Stores 300 Matter Capacity 300 Sight Range 16 Terrain Scan Density 10 Evasion (%) 50 Item Schematics ----------------- Mining Claw | -9/Materials | Scanalyzed Imp. Targeting Computer | -9/Materials | Scanalyzed Robot Schematics ------------------ None Fabricated ------------ Nothing Alien Tech Used ----------------- None Achievements -------------- None Challenges ------------ None Game ------ Seed GodTargetMembrane Manual? 0 Play Time 00:12:22 Cumulative 6.8 hours Start 2021.02.24 @ 00:18:16 End 2021.02.24 @ 00:28:35 Sessions 1 Manual Loads 0 Difficulty Rogue Special Mode None Game No. 11 Rogue 11 Adventurer 0 Explorer 0 Win Type - Total 0 Types 0/0/0/0/0/0/0/0/0 Lore% 7 Gallery% 16 Achievement% 13 Wizard Run 0 Options --------- ASCII 0 Keyboard 0 Movement Mouse Keybinds 0 Fullscreen 1 Font 24/Proggy Map View 76x50 Tactical HUD 0 Map Filters NONE Filters NONE Steam 1 RUN: 9a163521-6661-4c9b-916f-aeda3afb51f5